{"text_format":"3","workbook":"xlsx","n_sheets":1,"sheets":["HNZ April Indent"],"not_rendered":{"external_links":1,"defined_names":2},"read":"whole","date_system":"1900"}

{"sheet":"HNZ April Indent","index":0,"n_rows":392,"n_cols":9,"rows_kept":392,"merged":[[1,0,1,8],[12,0,14,8]]}
[]
["HACHETTE NZ ORDER FORM: APRIL 2026"]
[]
["SEND YOUR ORDERS TO: "]
[null,"Alliance Distribution Services, 9 Pioneer Ave, Tuggerah, NSW 2259, AUSTRALIA "]
[null,"PHONE: 09 477 4120 "]
[null,"EMAIL: adscs@alliancedist.com.au"]
["CUSTOMER:"]
["ADDRESS:"]
["ORDER REF:",null,null,"ACCOUNT NUMBER:"]
[]
[]
["New title orders and point of sale orders must be with Alliance Distribution Services by 11 February 2026. If orders are not received by this date we cannot guarantee full supply of your order. All prices are recommended retail only, GST inclusive and subject to change without notice. Delivery dates are subject to change without notice"]
[]
[]
["ADULT INDENT"]
[]
["Fiction"]
[]
["g",9780356524658,"2026-04-21","A Conventional Boy: A Laundry Files Collection","Stross, Charles","P",27.99,"Orbit","9HSKDPG*fcegfi+"]
[]
["g",9780349725253,"2026-03-31","A Good Person","King, Kirsten","T",37.99,"Fleet","9HSKDOJ*hcfcfd+"]
[]
["g",9781399612685,"2026-04-21","A Testimony of Blood","Payne, Rogba","P",27.99,"Gollancz","9HSLDTJ*gbcgif+"]
[]
["g",9781399725903,"2026-04-14","Bad Blood","Hornsley, Sarah","P",27.99,"Hodder Paperbacks","9HSLDTJ*hcfjad+"]
[]
["g",9781472294425,"2026-04-07","Death Times Seven: Daniel Pitt Mystery Bk 7","Perry, Anne","H",{"v":70,"d":"70.00"},"Headline","9HSLERC*cjeecf+"]
[]
["g",9781035441808,"2026-04-21","It's Different This Time","Richard, Joss","P",27.99,"Headline","9HSLANF*eebiai+"]
[]
["g",9781035421886,"2026-04-21","Last Evenings with Teresa","Marsé, Juan","P",29.99,"Mountain Leopard Press","9HSLANF*ecbiig+"]
[]
["g",9781472159922,"2026-04-21","Lazarus Man","Price, Richard","P",27.99,"Corsair","9HSLERC*bfjjcc+"]
[]
["g",9781035428335,"2026-04-21","Mississippi Blue 42: Special Agent Rae Johnson Bk 1","Cranor, Eli","P",27.99,"Headline","9HSLANF*eciddf+"]
[]
["g",9781399747998,"2026-03-31","Murder in Purple and Gold: Flavia Albia Bk 16","Davis, Lindsey","T",37.99,"Hodder & Stoughton","9HSLDTJ*hehjji+"]
[]
["g",9781398727595,"2026-04-14","No Time For Goodbye: No Time For Goodbye Bk 1","Barclay, Linwood","P",27.99,"Orion","9HSLDTI*hchfjf+"]
[]
["g",9781399725927,"2026-04-07","One Dark Summer","Hornsley, Sarah","T",37.99,"Hodder & Stoughton","9HSLDTJ*hcfjch+"]
[]
["g",9780349727905,"2026-04-21","Prestige Drama","O'Reilly, Seamas","T",37.99,"Fleet","9HSKDOJ*hchjaf+"]
[]
["g",9781399640503,"2026-04-21","Roots of Darkness","Winters, Demi","H",{"v":60,"d":"60.00"},"Gollancz","9HSLDTJ*geafad+"]
[]
["g",9780349441788,"2026-04-21","Shattering Dawn: Lost Night Files Bk 3","Krentz, Jayne Ann","P",27.99,"Piatkus","9HSKDOJ*eebhii+"]
[]
["g",9781408736173,"2026-04-14","Sleepyhead 25th Anniversary Edition: Tom Thorne Bk 1","Billingham, Mark","P",29.99,"Sphere","9HSLEKI*hdgbhd+"]
[]
["g",9781472160010,"2026-04-21","Space Oddity","Valente, Catherynne M.","P",27.99,"Corsair","9HSLERC*bgaaba+"]
[]
["g",9781538780541,"2026-03-03","Strangers in the Villa","Harding, Robyn","T",37.99,"Grand Central Publishing","9HSLFNI*hiafeb+"]
[]
["g",9781529442984,"2026-04-14","The Field Girls","Archer, Rosie","P",27.99,"Quercus","9HSLFMJ*eecjie+"]
[]
["g",9781399756617,"2026-04-07","The Hotel Guest","Hennigan, Rosemary","T",37.99,"Hachette Books Ireland","9HSLDTJ*hfggbh+"]
[]
["g",9781035407804,"2026-03-31","The Jewel of Cairo","Shehadi, Muna","T",37.99,"Headline Review","9HSLANF*eahiae+"]
[]
["g",9781398729339,"2026-04-14","The Naming Of The Dead: Rebus Bk 16","Rankin, Ian","P",27.99,"Orion","9HSLDTI*hcjddj+"]
[]
["g",9780316566322,"2026-04-07","The Quiet Librarian","Eskens, Allen","T",37.99,"Little, Brown US","9HSKDLG*fggdcc+"]
[]
["g",9781035412693,"2026-04-21","The Silence and the Rage: The Glorious Years Bk 2","Lemaitre, Pierre","P",27.99,"Tinder Press","9HSLANF*ebcgjd+"]
[]
["g",9781399745628,"2026-04-21","The Ski Lodge","Manning, Nina","P",27.99,"Hodder Paperbacks","9HSLDTJ*hefgci+"]
[]
["g",9781408721766,"2026-04-14","The Take","Yang, Kelly","T",37.99,"Constable","9HSLEKI*hcbhgg+"]
[]
["g",9781836187646,"2026-04-14","The Woman Downstairs","Kirk, JD","P",27.99,"Bookouture","9HSLING*bihgeg+"]
[]
["Non-Fiction"]
[]
["g",9780349443829,"2026-04-21",{"$f":"VLOOKUP(B76, '[1]Group Output'!$B:$E, 3, FALSE)","v":"Bad Drunk"},"Mackintosh, Millie","P",29.99,"Piatkus","9HSKDOJ*eedicj+"]
[]
["g",9781399751780,"2026-04-14","Beyond Weight-Loss Jabs","Chell, Paul Barrington,","T",39.99,"Yellow Kite","9HSLDTJ*hfbhia+"]
[]
["g",9798897080090,"2026-04-21",{"$f":"VLOOKUP(B80, '[1]Group Output'!$B:$E, 3, FALSE)","v":"Don't Throw It, Grow It, 2nd Edition"},"Martin, Byron; ","P",29.99,"Storey","9HTSITH*aiaaja+"]
[]
["g",9781648293801,"2026-03-31",{"$f":"VLOOKUP(B82, '[1]Group Output'!$B:$E, 3, FALSE)","v":"Everyone Hot Pot"},"Pickowicz, Natasha","H",{"v":60,"d":"60.00"},"Artisan","9HSLGOI*cjdiab+"]
[]
["g",9780349146980,"2026-04-21",{"$f":"VLOOKUP(B84, '[1]Group Output'!$B:$E, 3, FALSE)","v":"Far from Eutopia"},"Clark, Ross","P",29.99,"Abacus","9HSKDOJ*begjia+"]
[]
["g",9798894140872,"2026-04-14",{"$f":"VLOOKUP(B86, '[1]Group Output'!$B:$E, 3, FALSE)","v":"Fenway Punk"},"Wrenn, Chris","H",{"v":60,"d":"60.00"},"Running Press Adult","9HTSITE*beaihc+"]
[]
["g",9781408783238,"2026-04-21","Friendship Skills for Neurodivergent Adults","Maguire, Caroline","T",39.99,"Robinson","9HSLEKI*hidcdi+"]
[]
["g",9781035420070,"2026-04-14","Get Out of Your Own Way","Goldie, Alex","P",29.99,"Headline Welbeck Non-Fiction","9HSLANF*ecaaha+"]
[]
["g",9781643265254,"2026-04-07",{"$f":"VLOOKUP(B92, '[1]Group Output'!$B:$E, 3, FALSE)","v":"Grow Great Vegetables in Oregon"},"Edwards Forkner, Lorene","P",44.99,"Timber Press","9HSLGOD*cgfcfe+"]
[]
["g",9781643265292,"2026-04-07",{"$f":"VLOOKUP(B94, '[1]Group Output'!$B:$E, 3, FALSE)","v":"Grow Great Vegetables in Washington"},"Edwards Forkner, Lorene","P",44.99,"Timber Press","9HSLGOD*cgfcjc+"]
[]
["g",9781399821377,"2026-03-31","Gut Goals","Rosen, Beth","T",34.99,"Sheldon Press","9HSLDTJ*icbdhh+"]
[]
["g",9780600639374,"2026-04-21",{"$f":"VLOOKUP(B98, '[1]Group Output'!$B:$E, 3, FALSE)","v":"Hamlyn Cooks: Easy Vegan Meals"},"Hamlyn","P",24.99,"Hamlyn","9HSKGKA*gdjdhe+"]
[]
["g",9780600639336,"2026-04-21",{"$f":"VLOOKUP(B100, '[1]Group Output'!$B:$E, 3, FALSE)","v":"Hamlyn Cooks: Juices & Smoothies"},"Hamlyn","P",24.99,"Hamlyn","9HSKGKA*gdjddg+"]
[]
["g",9780600639411,"2026-04-21",{"$f":"VLOOKUP(B102, '[1]Group Output'!$B:$E, 3, FALSE)","v":"Hamlyn Cooks: Mediterranean"},"Hamlyn","P",24.99,"Hamlyn","9HSKGKA*gdjebb+"]
[]
["g",9780600639312,"2026-04-21",{"$f":"VLOOKUP(B104, '[1]Group Output'!$B:$E, 3, FALSE)","v":"Hamlyn Cooks: Vegetarian Air Fryer"},"Hamlyn","P",24.99,"Hamlyn","9HSKGKA*gdjdbc+"]
[]
["g",9780349020709,"2026-03-31","How Korean Corn Dogs Changed My Life","Amelia, Alice","T",39.99,"Virago","9HSKDOJ*acahaj+"]
[]
["g",9781035429981,"2026-04-14","How to Be a Boss Witch","Welbeck","H",44.99,"Welbeck","9HSLANF*ecjjib+"]
[]
["g",9781635869491,"2026-04-21",{"$f":"VLOOKUP(B110, '[1]Group Output'!$B:$E, 3, FALSE)","v":"How to Forage for Medicinal Plants without Dying"},"Ruiz, Brandon","P",39.99,"Storey","9HSLGNF*igjejb+"]
[]
["g",9781399748100,"2026-03-31","Live Like You Give a Damn","Owen, Andrea","T",39.99,"Yellow Kite","9HSLDTJ*heibaa+"]
[]
["g",9781035438426,"2026-04-14","Living Plantfully","Harrad, Lindsey","P",29.99,"Welbeck","9HSLANF*ediecg+"]
[]
["g",9798886471182,"2026-04-21",{"$f":"VLOOKUP(B116, '[1]Group Output'!$B:$E, 3, FALSE)","v":"Moon Camino de Santiago - 3rd Edition"},"Bahrami, Beebe;","P",{"v":60,"d":"60.00"},"Moon Travel","9HTSISG*ehbbic+"]
[]
["g",9798886471564,"2026-04-21",{"$f":"VLOOKUP(B118, '[1]Group Output'!$B:$E, 3, FALSE)","v":"Moon Vancouver & Canadian Rockies Road Trip - 4th Edition"},"Heller, Carolyn B","P",44.99,"Moon Travel","9HTSISG*ehbfge+"]
[]
["g",9781035426874,"2026-04-14",{"$f":"VLOOKUP(B120, '[1]Group Output'!$B:$E, 3, FALSE)","v":"Move Well For Life"},"Welpton, Wendy","T",39.99,"Headline Home","9HSLANF*ecgihe+"]
[]
["g",9781837997411,"2026-04-21","Nutrition Hacks","Publishers, Summersdale","P",39.99,"Vie","9HSLINH*jjhebb+"]
[]
["g",9781849077309,"2026-04-21","Philip's Britain and Ireland Road Map","Philip's Maps","Z",29.99,"Philip's","9HSLIOJ*ahhdaj+"]
[]
["g",9781529316759,"2026-03-31",{"$f":"VLOOKUP(B126, '[1]Group Output'!$B:$E, 3, FALSE)","v":"Quick Wins"},"Mills (Woodward), Ella","H",{"v":60,"d":"60.00"},"Yellow Kite","9HSLFMJ*dbghfj+"]
[]
["g",9781399809214,"2026-04-14",{"$f":"VLOOKUP(B128, '[1]Group Output'!$B:$E, 3, FALSE)","v":"Rich Forever"},"Miller-Cole, Bianca,","P",29.99,"John Murray One","9HSLDTJ*iajcbe+"]
[]
["g",9781641716871,"2026-03-31",{"$f":"VLOOKUP(B130, '[1]Group Output'!$B:$E, 3, FALSE)","v":"Rick Steves Pocket Munich & Salzburg - 4th Edition"},"Steves, Rick","P",29.99,"Rick Steves","9HSLGOB*hbgihb+"]
[]
["g",9781399753135,"2026-03-31",{"$f":"VLOOKUP(B132, '[1]Group Output'!$B:$E, 3, FALSE)","v":"Rise and Shine"},"Trotter, Tom","T",39.99,"Yellow Kite","9HSLDTJ*hfdbdf+"]
[]
["g",9798894142654,"2026-03-24","Safe Baby Handling Tips (Revised and Even Safer Edition)","Sopp, David,","H",34.99,"Running Press Adult","9HTSITE*becgfe+"]
[]
["g",9781837991365,"2026-04-21","Self-Care for Every Day Journal","Publishers, Summersdale","P",39.99,"Vie","9HSLINH*jjbdgf+"]
[]
["g",9781643757544,"2026-02-10",{"$f":"VLOOKUP(B138, '[1]Group Output'!$B:$E, 3, FALSE)","v":"She's Under Here"},"Palmer, Karen","H",{"v":60,"d":"60.00"},"Algonquin Books","9HSLGOD*hfhfee+"]
[]
["g",9780349443751,"2026-04-21","Smarter","Austen, Emily","P",29.99,"Piatkus","9HSKDOJ*eedhfb+"]
[]
["g",9781399727907,"2026-04-07","Stalin's Apostles","Senior, Antonia","T",39.99,"Hodder & Stoughton","9HSLDTJ*hchjah+"]
[]
["g",9781837997374,"2026-04-21","Still Running After All These Tears","Jackson, Lisa","P",34.99,"Summersdale","9HSLINH*jjhdhe+"]
[]
["g",9780349436210,"2026-04-21","The Art and Science of Connection","Killam, Kasley","P",29.99,"Piatkus","9HSKDOJ*edgcba+"]
[]
["g",9781837997756,"2026-04-07","The A-Z of Longevity","Barnes, Anna","H",24.99,"Vie","9HSLINH*jjhhfg+"]
[]
["g",9781541706231,"2026-04-07",{"$f":"VLOOKUP(B150, '[1]Group Output'!$B:$E, 3, FALSE)","v":"The Billionaire Who Wasn't"},"O'Clery, Conor","T",{"v":50,"d":"50.00"},"PublicAffairs","9HSLFOB*hagcdb+"]
[]
["g",9781399824293,"2026-04-21","The Fascia Connection","Lesondak, David","T",39.99,"Sheldon Press","9HSLDTJ*icecjd+"]
[]
["g",9781837998135,"2026-04-07","The Fashion Classics","Faulkner, Clare","H",39.99,"Summersdale","9HSLINH*jjibdf+"]
[]
["g",9781837997770,"2026-04-07","The Golf Puzzle Book","Johnson, Monty","H",34.99,"Summersdale","9HSLINH*jjhhha+"]
[]
["g",9781837998074,"2026-04-07","The Hedgerow Apothecary's Field Guide to Wildflowers","Iverson, Christine","H",39.99,"Summersdale","9HSLINH*jjiahe+"]
[]
["g",9781399811279,"2026-03-31",{"$f":"VLOOKUP(B160, '[1]Group Output'!$B:$E, 3, FALSE)","v":"The Joy of Well-Being"},"Wachob, Jason,","P",29.99,"John Murray One","9HSLDTJ*ibbchj+"]
[]
["g",9781035434831,"2026-04-21","The Little Book of Las Vegas","OH","H",19.99,"OH!","9HSLANF*edeidb+"]
[]
["g",9781035433339,"2026-04-21","The Little Book of Moon Magic","OH","H",19.99,"OH!","9HSLANF*eddddj+"]
[]
["g",9780349136844,"2026-04-07","The Oracle's Daughter","Hill, Harrison","T",39.99,"The Bridge Street Press","9HSKDOJ*bdgiee+"]
[]
["g",9780600639565,"2026-03-31","The PCOS Recipe Book","Hallett, Megan","P",{"v":50,"d":"50.00"},"Hamlyn","9HSKGKA*gdjfgf+"]
[]
["g",9780349427881,"2026-03-31",{"$f":"VLOOKUP(B170, '[1]Group Output'!$B:$E, 3, FALSE)","v":"The Secret Life of Clutter"},"Sanderson, Helen","P",29.99,"Piatkus","9HSKDOJ*echiib+"]
[]
["g",9780349440613,"2026-04-21","Think Like a Spy","Fisher, Julian","P",29.99,"Piatkus","9HSKDOJ*eeagbd+"]
[]
["g",9781645030768,"2026-04-07","This Is an Uprising","Engler, Mark; Engler, Paul","T",39.99,"Bold Type Books","9HSLGOF*adahgi+"]
[]
["g",9781541605886,"2026-04-07","Transgender History, Third Edition","Stryker, Susan","P",39.99,"Seal Press","9HSLFOB*gafiig+"]
[]
["g",9781399819459,"2026-03-31","Unapologetic Aging","Benfield, Debra","T",39.99,"Sheldon Press","9HSLDTJ*ibjefj+"]
[]
["g",9781472149848,"2026-04-21",{"$f":"VLOOKUP(B180, '[1]Group Output'!$B:$E, 3, FALSE)","v":"Was That Racist?"},"Carter, Evelyn","H",{"v":65,"d":"65.00"},"Robinson","9HSLERC*bejiei+"]
[]
["g",9781035433377,"2026-04-21","What I Was Made For: The Little Guide to Billie Eilish","OH","H",19.99,"OH!","9HSLANF*edddhh+"]
[]
["g",9781529438611,"2026-04-14",{"$f":"VLOOKUP(B184, '[1]Group Output'!$B:$E, 3, FALSE)","v":"Why Brains Need Friends"},"Rein, Ben","H",{"v":70,"d":"70.00"},"Quercus","9HSLFMJ*edigbb+"]
[]
["g",9781837997794,"2026-04-07","You Smashed It!","Summersdale Publishers","H",19.99,"Summersdale","9HSLINH*jjhhje+"]
[]
["g",9781399815543,"2026-04-21",{"$f":"VLOOKUP(B188, '[1]Group Output'!$B:$E, 3, FALSE)","v":"Your Unconscious Is Showing"},"Tracy, Dr Courtney","P",29.99,"John Murray One","9HSLDTJ*ibffed+"]
[]
["CHILDREN'S INDENT"]
[]
["Fiction"]
[]
["g",9781546009139,"2026-04-07","A Place to Pray","Robinson, Doreen Klein","H",39.99,"WorthyKids","9HSLFOG*aajbdj+"]
[]
["g",9780316570800,"2026-04-07","A Scar Like a River","Graff, Lisa","H",34.99,"Little, Brown YR US","9HSKDLG*fhaiaa+"]
[]
["g",9780316581172,"2026-04-21","All That Glimmers","Baker, Laura","H",34.99,"Little, Brown YR US","9HSKDLG*fibbhc+"]
[]
["g",9781546011002,"2026-03-31","All Things Bright and Beautiful","Alexander, Cecil Frances","P",19.99,"WorthyKids","9HSLFOG*abbaac+"]
[]
["g",9781546010999,"2026-04-07","Baby Virtues Boxed Set","Marianayagam, Maria,Uno, Kat","H",59.99,"WorthyKids","9HSLFOG*abajjj+"]
[]
["g",9780734424235,"2026-03-31","Backyard Tennis","Carl Merrison","P",21.99,"Lothian Children's ","9HSKHNE*ececdf+"]
[]
["g",9798894142470,"2026-04-07","Bigfoot and Friends","Stephens, Wendy","N",19.99,"Running Press Kids","9HTSITE*beceha+"]
[]
["g",9780316446419,"2026-04-21","Birdy","Moss, ,West, N.","H",37.99,"Little, Brown YR US","9HSKDLG*eegebj+"]
[]
["g",9781523534975,"2026-04-14","Indestructibles: Baby Loves the Library","Workman Publishing","P",14.99,"Workman Children's","9HSLFMD*fdejhf+"]
[]
["g",9780316570152,"2026-04-14","It's Spring!","Kurilla, Renée","H",39.99,"Little, Brown YR US","9HSKDLG*fhabfc+"]
[]
["g",9780316587136,"2026-04-21","Love, Sivvy","Toalson, R. L.","H",34.99,"Little, Brown YR US","9HSKDLG*fihbdg+"]
[]
["g",9781444976311,"2026-04-07","Mandy is still a Banana","Arena, Zoe","P",21.99,"Hodder Children's","9HSLEOE*jhgdbb+"]
[]
["g",9780316577441,"2026-03-31","Ramadan for Everyone","Khalil, Aya","H",39.99,"Little, Brown YR US","9HSKDLG*fhheeb+"]
[]
["g",9780316349994,"2026-04-14","The Jules Verne Prophecy 01","Schwarz, Larry; ","P",19.99,"Little, Brown YR US","9HSKDLG*dejjje+"]
[]
["g",9780316442169,"2026-04-07","The Mighty Macy","Alexander, Kwame","H",34.99,"Little, Brown YR US","9HSKDLG*eecbgj+"]
[]
["g",9780316528955,"2026-03-31","The Snips 02 Enter the Wigmaster","Raul the Third","H",29.99,"Little, Brown YR US","9HSKDLG*fcijff+"]
[]
["g",9781399717564,"2026-04-21","The Swan's Daughter","Chokshi, Roshani","H",{"v":60,"d":"60.00"},"Hodderscape","9HSLDTJ*hbhfge+"]
[]
["g",9781444980318,"2026-04-21","Ug Want Hug","Leschnikoff, Nancy","P",21.99,"Hodder Children's","9HSLEOE*jiadbi+"]
[]
["g",9780316281126,"2026-04-14","When Cherry Blossoms Fall","Goldsaito, Katrina","H",34.99,"Little, Brown YR US","9HSKDLG*cibbcg+"]
[]
["Non-Fiction"]
[]
["g",9781445192543,"2026-04-07","A Comic Strip History of Evolution","Claybourne, Anna","P",24.99,"Franklin Watts","9HSLEOF*bjcfed+"]
[]
["g",9781445192529,"2026-04-07","A Comic Strip History of Evolution","Claybourne, Anna","H",34.99,"Franklin Watts","9HSLEOF*bjcfcj+"]
[]
["g",9781526329769,"2026-04-07","A Question of the Arts: Can a Building Fry an Egg? (and other questions about architecture)","Auld, Mary","P",24.99,"Wayland","9HSLFMG*dcjhgj+"]
[]
["g",9781526329752,"2026-04-07","A Question of the Arts: Can a Building Fry an Egg? (and other questions about architecture)","Auld, Mary","H",34.99,"Wayland","9HSLFMG*dcjhfc+"]
[]
["g",9781526329783,"2026-04-07","A Question of the Arts: Did Cave People Waltz? (and other questions about dance)","Auld, Mary","P",24.99,"Wayland","9HSLFMG*dcjhid+"]
[]
["g",9781526329776,"2026-04-07","A Question of the Arts: Did Cave People Waltz? (and other questions about dance)","Auld, Mary","H",34.99,"Wayland","9HSLFMG*dcjhhg+"]
[]
["g",9781445192345,"2026-04-07","Clever Questions: Rainforests","Lynch, Annabelle","P",24.99,"Franklin Watts","9HSLEOF*bjcdef+"]
[]
["g",9781445192338,"2026-04-07","Clever Questions: Rainforests","Lynch, Annabelle","H",34.99,"Franklin Watts","9HSLEOF*bjcddi+"]
[]
["g",9781445192161,"2026-04-07","Clever Questions: Robots & AI","Adams, Julia","P",24.99,"Franklin Watts","9HSLEOF*bjcbgb+"]
[]
["g",9781445192154,"2026-04-07","Clever Questions: Robots & AI","Adams, Julia","H",34.99,"Franklin Watts","9HSLEOF*bjcbfe+"]
[]
["g",9781445192383,"2026-04-07","Cute Pets! And How to Care For Them: Cats","Heneghan, Judith","P",24.99,"Franklin Watts","9HSLEOF*bjcdid+"]
[]
["g",9781445192376,"2026-04-07","Cute Pets! And How to Care For Them: Cats","Heneghan, Judith","H",34.99,"Franklin Watts","9HSLEOF*bjcdhg+"]
[]
["g",9781445192406,"2026-04-07","Cute Pets! And How to Care For Them: Dogs","Heneghan, Judith","P",24.99,"Franklin Watts","9HSLEOF*bjceag+"]
[]
["g",9781445192390,"2026-04-07","Cute Pets! And How to Care For Them: Dogs","Heneghan, Judith","H",34.99,"Franklin Watts","9HSLEOF*bjcdja+"]
[]
["g",9781526328403,"2026-04-07","Dangerous Creatures: Big Cats","Huggins-Cooper, Lynn","P",24.99,"Wayland","9HSLFMG*dciead+"]
[]
["g",9781526328397,"2026-04-07","Dangerous Creatures: Big Cats","Huggins-Cooper, Lynn","H",34.99,"Wayland","9HSLFMG*dcidjh+"]
[]
["g",9781526328380,"2026-04-07","Dangerous Creatures: Bugs and Spiders","Huggins-Cooper, Lynn","P",24.99,"Wayland","9HSLFMG*dcidia+"]
[]
["g",9781526328373,"2026-04-07","Dangerous Creatures: Bugs and Spiders","Huggins-Cooper, Lynn","H",34.99,"Wayland","9HSLFMG*dcidhd+"]
[]
["g",9781526328427,"2026-04-07","Dangerous Creatures: Snakes and Other Reptiles","Huggins-Cooper, Lynn","P",24.99,"Wayland","9HSLFMG*dciech+"]
[]
["g",9781526328410,"2026-04-07","Dangerous Creatures: Snakes and Other Reptiles","Huggins-Cooper, Lynn","H",34.99,"Wayland","9HSLFMG*dcieba+"]
[]
["g",9780316556316,"2026-04-21","Fatal Forecast","Tougias, Michael J,Tougias, Michael J","P",24.99,"Little, Brown YR US","9HSKDLG*ffgdbg+"]
[]
["g",9781635869705,"2026-04-14","Gorgeous Garden of Tattoo Flowers","Peterson, Saskia","P",19.99,"Storey","9HSLGNF*igjhaf+"]
[]
["g",9781526330956,"2026-04-07","I Wouldn’t Let a Cat Teach me to Skydive","Mason, Paul","P",24.99,"Wayland","9HSLFMG*ddajfg+"]
[]
["g",9781526330949,"2026-04-07","I Wouldn’t Let a Cat Teach me to Skydive","Mason, Paul","H",34.99,"Wayland","9HSLFMG*ddajej+"]
[]
["g",9781526330925,"2026-04-07","I Wouldn't Let a Dog  Ride a Bike","Mason, Paul","H",34.99,"Wayland","9HSLFMG*ddajcf+"]
[]
["g",9781526330932,"2026-04-07","I Wouldn't Let a Dog Ride a Bike","Mason, Paul","P",24.99,"Wayland","9HSLFMG*ddajdc+"]
[]
["g",9781526330918,"2026-04-07","I Wouldn't Let a Panda Launch a Spacecraft","Mason, Paul","P",24.99,"Wayland","9HSLFMG*ddajbi+"]
[]
["g",9781526330901,"2026-04-07","I Wouldn't Let a Panda Launch a Spacecraft","Mason, Paul","H",34.99,"Wayland","9HSLFMG*ddajab+"]
[]
["g",9781523535828,"2026-04-14","Indestructibles Baby Loves the Library (Simplified Chinese Editio","Publishing, Workman","P",14.99,"Workman Children's","9HSLFMD*fdfici+"]
[]
["g",9781523534968,"2026-04-14","Indestructibles: Al Bebe le Encanta la Biblioteca/ Baby Loves the","Publishing, Workman","P",14.99,"Workman Children's","9HSLFMD*fdejgi+"]
[]
["g",9781526329530,"2026-04-07","It’s Tough to Be: A T. Rex (and Other Dinosaurs)","Townsend, John","P",24.99,"Wayland","9HSLFMG*dcjfda+"]
[]
["g",9781526329516,"2026-04-07","It’s Tough to Be: A T. Rex (and Other Dinosaurs)","Townsend, John","H",34.99,"Wayland","9HSLFMG*dcjfbg+"]
[]
["g",9781526329561,"2026-04-07","It’s Tough to Be: A Tiger (and Other Cats)","Townsend, John","P",24.99,"Wayland","9HSLFMG*dcjfgb+"]
[]
["g",9781526329547,"2026-04-07","It’s Tough to Be: A Tiger (and Other Cats)","Townsend, John","H",34.99,"Wayland","9HSLFMG*dcjfeh+"]
[]
["g",9781526329592,"2026-04-07","It's Tough to Be: A Shark (and Other Sea Creatures)","Townsend, John","P",24.99,"Wayland","9HSLFMG*dcjfjc+"]
[]
["g",9781526329578,"2026-04-07","It's Tough to Be: A Shark (and Other Sea Creatures)","Townsend, John","H",34.99,"Wayland","9HSLFMG*dcjfhi+"]
[]
["g",9780734423399,"2026-03-31","Narm-Jaap: A Flinders Street Station History","Melissa-Jane Fogarty","H",29.99,"Lothian Children's ","9HSKHNE*ecddjj+"]
[]
["g",9781526330833,"2026-04-07","Number Planet: How Big is a Polar Bear?","Spilsbury, Louise","P",24.99,"Wayland","9HSLFMG*ddaidd+"]
[]
["g",9781526330826,"2026-04-07","Number Planet: How Big is a Polar Bear?","Spilsbury, Louise","H",34.99,"Wayland","9HSLFMG*ddaicg+"]
[]
["g",9781526330857,"2026-04-07","Number Planet: How Many Chicks Can You Count?","Spilsbury, Louise","P",24.99,"Wayland","9HSLFMG*ddaifh+"]
[]
["g",9781526330840,"2026-04-07","Number Planet: How Many Chicks Can You Count?","Spilsbury, Louise","H",34.99,"Wayland","9HSLFMG*ddaiea+"]
[]
["g",9781445195643,"2026-04-07","Phone Smart","Jackson, Tom","P",24.99,"Franklin Watts","9HSLEOF*bjfged+"]
[]
["g",9781445195278,"2026-04-07","Phone Smart","Jackson, Tom","H",34.99,"Franklin Watts","9HSLEOF*bjfchi+"]
[]
["g",9781526324177,"2026-04-07","Q and A Kids: Electricity","Chapman, Amy","P",24.99,"Wayland","9HSLFMG*dcebhh+"]
[]
["g",9781526324184,"2026-04-07","Q and A Kids: Electricity","Chapman, Amy","H",34.99,"Wayland","9HSLFMG*dcebie+"]
[]
["g",9781526324061,"2026-04-07","Q and A Kids: Food Chains","Chapman, Amy","P",24.99,"Wayland","9HSLFMG*dceagb+"]
[]
["g",9781526324054,"2026-04-07","Q and A Kids: Food Chains","Chapman, Amy","H",34.99,"Wayland","9HSLFMG*dceafe+"]
[]
["g",9781445197081,"2026-04-07","Reading Champion The Secret Seven The Lost Car","Walter, Jackie","H",29.99,"Franklin Watts","9HSLEOF*bjhaib+"]
[]
["g",9781445196930,"2026-04-07","Reading Champion: Enid Blyton animal stories: A Piece of Cheese","Walter, Jackie","P",19.99,"Franklin Watts","9HSLEOF*bjgjda+"]
[]
["g",9781445197302,"2026-04-07","Reading Champion: The Famous Five: George's Missing Boat","Walter, Jackie","P",19.99,"Franklin Watts","9HSLEOF*bjhdac+"]
[]
["g",9781445197296,"2026-04-07","Reading Champion: The Famous Five: George's Missing Boat","Walter, Jackie","H",29.99,"Franklin Watts","9HSLEOF*bjhcjg+"]
[]
["g",9781445197098,"2026-04-07","Reading Champion: The Secret Seven: The Lost Car","Walter, Jackie","P",19.99,"Franklin Watts","9HSLEOF*bjhaji+"]
[]
["g",9781445197128,"2026-04-07","Reading Champion: The Secret Seven: The Town Fair","Walter, Jackie","P",19.99,"Franklin Watts","9HSLEOF*bjhbci+"]
[]
["g",9781445197111,"2026-04-07","Reading Champion: The Secret Seven: The Town Fair","Walter, Jackie","H",29.99,"Franklin Watts","9HSLEOF*bjhbbb+"]
[]
["g",9781526329707,"2026-04-07","Record-Breaking: Dinosaur Facts","Howell, Izzi","P",24.99,"Wayland","9HSLFMG*dcjhah+"]
[]
["g",9781526329691,"2026-04-07","Record-Breaking: Dinosaur Facts","Howell, Izzi","H",34.99,"Wayland","9HSLFMG*dcjgjb+"]
[]
["g",9781526329721,"2026-04-07","Record-Breaking: Technology Facts","Howell, Izzi","P",24.99,"Wayland","9HSLFMG*dcjhcb+"]
[]
["g",9781526329714,"2026-04-07","Record-Breaking: Technology Facts","Howell, Izzi","H",34.99,"Wayland","9HSLFMG*dcjhbe+"]
[]
["g",9781526329240,"2026-04-07","Science Toons: Animals and Plants","Jackson, Tom","P",24.99,"Wayland","9HSLFMG*dcjcea+"]
[]
["g",9781526329226,"2026-04-07","Science Toons: Animals and Plants","Jackson, Tom","H",34.99,"Wayland","9HSLFMG*dcjccg+"]
[]
["g",9781526329219,"2026-04-07","Science Toons: The Human Body","Jackson, Tom","P",24.99,"Wayland","9HSLFMG*dcjcbj+"]
[]
["g",9781526329196,"2026-04-07","Science Toons: The Human Body","Jackson, Tom","H",34.99,"Wayland","9HSLFMG*dcjbjg+"]
[]
["g",9781445195599,"2026-04-07","Sweet Dreams","Williams, Susie","P",24.99,"Franklin Watts","9HSLEOF*bjffjj+"]
[]
["g",9781445195582,"2026-04-07","Sweet Dreams","Williams, Susie","H",39.99,"Franklin Watts","9HSLEOF*bjffic+"]
[]
["g",9781526329066,"2026-04-07","Tell Me a Story About: A T. rex","Watts, Claire","P",24.99,"Wayland","9HSLFMG*dcjagg+"]
[]
["g",9781526329042,"2026-04-07","Tell Me a Story About: A T. rex","Watts, Claire","H",34.99,"Wayland","9HSLFMG*dcjaec+"]
[]
["g",9781526329028,"2026-04-07","Tell Me a Story About: The Sun","Watts, Claire","P",24.99,"Wayland","9HSLFMG*dcjaci+"]
[]
["g",9781526329011,"2026-04-07","Tell Me a Story About: The Sun","Watts, Claire","H",34.99,"Wayland","9HSLFMG*dcjabb+"]
[]
["g",9781445190600,"2026-04-07","The Delicious History of Food","Gifford, Clive","P",24.99,"Franklin Watts","9HSLEOF*bjagaa+"]
[]
["g",9781445190587,"2026-04-07","The Delicious History of Food","Gifford, Clive","H",34.99,"Franklin Watts","9HSLEOF*bjafih+"]
[]
["g",9781839553257,"2026-04-07","The Unofficial Fan Guide to BTS","Cather, Hannah","H",27.99,"Welbeck Children's ","9HSLINJ*ffdcfh+"]
[]
["g",9780316380850,"2026-04-14","The Wild River and the Great Dam","Boughton, Simon","P",24.99,"Little, Brown YR US","9HSKDLG*diaifa+"]
[]
["g",9780316594059,"2026-03-31","Todd Parr Phonics","Parr, Todd","P",34.99,"Little, Brown YR US","9HSKDLG*fjeafj+"]
[]
["g",9798897080069,"2026-04-14","Watery World of Tattoo Ocean Animals","Spencer, Erin","P",19.99,"Storey","9HTSITH*aiaagj+"]
[]
["g",9781526330109,"2026-04-07","Wheels at Work: Diggers","Davies, Bryony","P",24.99,"Wayland","9HSLFMG*ddabaj+"]
[]
["g",9781526330079,"2026-04-07","Wheels at Work: Diggers","Davies, Bryony","H",34.99,"Wayland","9HSLFMG*ddaahj+"]
[]
["g",9781526330093,"2026-04-07","Wheels at Work: Trains","Davies, Bryony","P",24.99,"Wayland","9HSLFMG*ddaajd+"]
[]
["g",9781526330086,"2026-04-07","Wheels at Work: Trains","Davies, Bryony","H",34.99,"Wayland","9HSLFMG*ddaaig+"]
[]
["g",9781526328076,"2026-04-07","Your Expert Guide: Biology for Young Scientists","Jackson, Tom,","P",29.99,"Wayland","9HSLFMG*dciahg+"]
[]
["g",9781526328052,"2026-04-07","Your Expert Guide: Biology for Young Scientists","Jackson, Tom,","H",39.99,"Wayland","9HSLFMG*dciafc+"]